[Event "VIII Iberoamericano Mexico 2022"]
[Site "Mexico City"]
[Date "2022.02.19"]
[Round "9.44"]
[White "Mares Arellano, Juan Antoni"]
[Black "Ocampo, Cristina"]
[Result "1-0"]
[ECO "D11"]
[WhiteElo "1812"]
[BlackElo "2024"]
[Annotator "NA"]
[PlyCount "83"]
[EventDate "2022.02.12"]
[EventType "swiss"]
[EventCountry "MEX"]
[SourceTitle "playchess.com"]
[Source "ChessBase"]
[SourceQuality "1"]
[TimeControl "5400+30"]

1. d4 {[%emt 0:00:05]} d5 {[%emt 0:00:29]} 2. Nf3 {[%emt 0:00:16]} Nf6 {[%emt 0:00:09]} 3. g3 {[%emt 0:00:23]} Bf5 {[%emt 0:01:15]} 4. Bg2 {[%emt 0:00:11]} e6 {[%emt 0:00:06]} 5. c4 {[%emt 0:00:08]} c6 {[%emt 0:02:08]} 6. Nc3 {[%emt 0:00:11]} h6 {[%emt 0:00:23]} 7. O-O {[%emt 0:02:06]} Be7 {[%emt 0:00:59]} 8. e3 {[%emt 0:08:58]} O-O {[%emt 0:02:09]} 9. Qe2 {[%emt 0:00:19]} Nbd7 {[%emt 0:00:33]} 10. Nd2 {[%emt 0:07:44]} Bh7 {[%emt 0:00:56]} 11. b3 {[%emt 0:06:21]} Re8 {[%emt 0:17:31]} 12. cxd5 {[%emt 0:02:31]} Nxd5 {[%emt 0:10:51]} 13. Bb2 {[%emt 0:08:20]} Bb4 {[%emt 0:05:13]} 14. Rfc1 {[%emt 0:01:30]} Nxc3 {[%emt 0:06:23]} 15. Bxc3 {[%emt 0:00:20]} Ba3 {[%emt 0:00:27]} 16. Rd1 {[%emt 0:00:28]} Nf6 {[%emt 0:02:56]} 17. Nc4 {[%emt 0:17:15]} Be7 {[%emt 0:00:14]} 18. a4 {[%emt 0:03:18]} Nd5 {[%emt 0:01:07]} 19. Be1 {[%emt 0:00:21]} a5 {[%emt 0:06:08]} 20. e4 {[%emt 0:01:15]} Nb4 {[%emt 0:00:16]} 21. Bc3 {[%emt 0:02:56]} Qc7 {[%emt 0:02:59]} 22. Rac1 {[%emt 0:05:05]} Rad8 {[%emt 0:00:51]} 23. Qb2 {[%emt 0:00:47]} Bf6 {[%emt 0:02:26]} 24. Ne3 {[%emt 0:04:14]} h5 {[%emt 0:04:49]} 25. Bf3 {[%emt 0:01:00]} Bg6 {[%emt 0:08:04]} 26. h4 {[%emt 0:01:44]} Qb6 {[%emt 0:03:30]} 27. Bxb4 {[%emt 0:05:34]} axb4 {[%emt 0:02:24]} 28. e5 {[%emt 0:00:12]} Be7 {[%emt 0:00:30]} 29. Qa1 {[%emt 0:01:32]} Rd7 {[%emt 0:01:25]} 30. Nc4 {[%emt 0:03:42]} Qa7 {[%emt 0:00:25]} 31. a5 {[%emt 0:00:28]} Bd8 {[%emt 0:04:17]} 32. a6 {[%emt 0:03:03]} Ree7 {[%emt 0:06:25]} 33. axb7 {[%emt 0:01:27]} Rxb7 {[%emt 0:00:17]} 34. Nd6 {[%emt 0:01:15]} Rb8 {[%emt 0:03:28]} 35. Rxc6 {[%emt 0:00:53]} Bb6 {[%emt 0:03:45]} 36. Nc8 {[%emt 0:01:50]} Rxc8 {[%emt 0:00:49]} 37. Rxc8+ {[%emt 0:01:10]} Kh7 {[%emt 0:00:01]} 38. Qxa7 {[%emt 0:01:07]} Rxa7 {[%emt 0:00:21]} 39. Rc4 {[%emt 0:01:19]} Ra3 {[%emt 0:01:56]} 40. Rxb4 {[%emt 0:00:26]} Ba7 {[%emt 0:00:32]} 41. Rc1 {[%emt 0:01:08]} Ra5 {[%emt 0:00:57]} 42. Ra4 {[%emt 0:00:36]} 1-0

[Event "VIII Iberoamericano Mexico 2022"]
[Site "Mexico City"]
[Date "2022.02.19"]
[Round "9.45"]
[White "Martin Del Campo C., Jorge"]
[Black "Ramirez Toledo, Ayleen Maribel"]
[Result "1-0"]
[ECO "B31"]
[WhiteElo "2019"]
[BlackElo "1810"]
[Annotator "NA"]
[PlyCount "77"]
[EventDate "2022.02.12"]
[EventType "swiss"]
[EventCountry "MEX"]
[SourceTitle "playchess.com"]
[Source "ChessBase"]
[SourceQuality "1"]
[TimeControl "5400+30"]

1. e4 {[%emt 0:00:04]} c5 {[%emt 0:00:11]} 2. Nf3 {[%emt 0:00:09]} Nc6 {[%emt 0:00:06]} 3. Bb5 {[%emt 0:00:10]} g6 {[%emt 0:00:08]} 4. O-O {[%emt 0:00:10]} Bg7 {[%emt 0:00:06]} 5. c3 {[%emt 0:00:04]} a6 {[%emt 0:05:44]} 6. Bxc6 {[%emt 0:01:45]} bxc6 {[%emt 0:00:51]} 7. h3 {[%emt 0:02:06]} Nf6 {[%emt 0:02:56]} 8. d3 {[%emt 0:03:36]} O-O {[%emt 0:01:25]} 9. Be3 {[%emt 0:00:22]} d6 {[%emt 0:08:19]} 10. Na3 {[%emt 0:03:22]} h6 {[%emt 0:03:23]} 11. Qd2 {[%emt 0:07:37]} Kh7 {[%emt 0:00:21]} 12. Nh2 {[%emt 0:05:58]} Ng8 {[%emt 0:03:30]} 13. f4 {[%emt 1:11:37]} f5 {[%emt 0:16:04]} 14. e5 {[%emt 0:14:04]} dxe5 {[%emt 0:01:11]} 15. fxe5 {[%emt 0:00:15]} Bxe5 {[%emt 0:01:05]} 16. Bxc5 {[%emt 0:00:17]} Bc7 {[%emt 0:11:40]} 17. Rae1 {[%emt 0:03:51]} Re8 {[%emt 0:01:29]} 18. Nc4 {[%emt 0:06:45]} e5 {[%emt 0:01:45]} 19. Nf3 {[%emt 0:03:30]} Qd5 {[%emt 0:04:47]} 20. Bb6 {[%emt 0:00:58]} Bb8 {[%emt 0:17:06]} 21. Bf2 {[%emt 0:03:27]} Bc7 {[%emt 0:04:52]} 22. Bg3 {[%emt 0:02:04]} Bb7 {[%emt 0:04:40]} 23. Bxe5 {[%emt 0:01:32]} Bxe5 {[%emt 0:10:21]} 24. Rxe5 {[%emt 0:04:52]} Rxe5 {[%emt 0:00:31]} 25. Nfxe5 {[%emt 0:00:21]} Re8 {[%emt 0:00:59]} 26. Re1 {[%emt 0:04:26]} Nf6 {[%emt 0:00:46]} 27. Nf3 {[%emt 0:02:30]} Rxe1+ {[%emt 0:03:24]} 28. Qxe1 {[%emt 0:01:13]} Qc5+ {[%emt 0:03:10]} 29. Kf1 {[%emt 0:05:21]} Ne4 {[%emt 0:01:04]} 30. Nfe5 {[%emt 0:02:46]} Ng5 {[%emt 0:00:50]} 31. Qf2 {[%emt 0:02:45]} Qd5 {[%emt 0:00:39]} 32. b4 {[%emt 0:06:44]} Ne6 {[%emt 0:00:33]} 33. d4 {[%emt 0:05:42]} Ng5 {[%emt 0:00:37]} 34. Qg3 {[%emt 0:00:16]} Qe6 {[%emt 0:00:19]} 35. Nd2 {[%emt 0:02:15]} Qxa2 {[%emt 0:00:45]} 36. Nec4 {[%emt 0:00:13]} Qa1+ {[%emt 0:00:28]} 37. Ke2 {[%emt 0:00:11]} Ne4 {[%emt 0:00:29]} 38. Qc7+ {[%emt 0:00:12]} Kg8 {[%emt 0:00:09]} 39. Qb8+ {[%emt 0:00:10]} 1-0

[Event "VIII Iberoamericano Mexico 2022"]
[Site "Mexico City"]
[Date "2022.02.19"]
[Round "9.46"]
[White "Diaz Gonzalez Jardon, Emmanuel"]
[Black "Guerrero Rodriguez, Alejandra"]
[Result "0-1"]
[ECO "A56"]
[WhiteElo "1807"]
[BlackElo "2019"]
[Annotator "NA"]
[PlyCount "40"]
[EventDate "2022.02.12"]
[EventType "swiss"]
[EventCountry "MEX"]
[SourceTitle "playchess.com"]
[Source "ChessBase"]
[SourceQuality "1"]
[TimeControl "5400+30"]

1. d4 {[%emt 0:05:04]} c5 {[%emt 0:00:51]} 2. d5 {[%emt 0:00:14]} d6 {[%emt 0:00:07]} 3. c4 {[%emt 0:00:12]} Nf6 {[%emt 0:00:21]} 4. Nc3 {[%emt 0:00:32]} g6 {[%emt 0:00:06]} 5. Bg5 {[%emt 0:03:19]} Bg7 {[%emt 0:00:56]} 6. Qd2 {[%emt 0:00:59]} O-O {[%emt 0:03:18]} 7. Bh6 {[%emt 0:02:28]} e6 {[%emt 0:03:14]} 8. Bxg7 {[%emt 0:03:19]} Kxg7 {[%emt 0:00:16]} 9. dxe6 {[%emt 0:07:32]} Bxe6 {[%emt 0:01:00]} 10. e3 {[%emt 0:00:14]} Nc6 {[%emt 0:02:14]} 11. O-O-O {[%emt 0:04:15]} Qa5 {[%emt 0:03:44]} 12. Qxd6 {[%emt 0:06:43]} Rfd8 {[%emt 0:06:14]} 13. Qf4 {[%emt 0:00:13]} Rxd1+ {[%emt 0:00:28]} 14. Kxd1 {[%emt 0:00:08]} Nb4 {[%emt 0:01:07]} 15. a3 {[%emt 0:02:52]} Rd8+ {[%emt 0:00:51]} 16. Ke1 {[%emt 0:05:19]} Nc2+ {[%emt 0:01:15]} 17. Ke2 {[%emt 0:00:07]} Nxa3 {[%emt 0:00:16]} 18. f3 {[%emt 0:06:20]} Nxc4 {[%emt 0:02:03]} 19. Kf2 {[%emt 0:05:50]} Nxb2 {[%emt 0:01:25]} 20. Qe5 {[%emt 0:00:42]} Qxc3 {[%emt 0:01:40]} 0-1

[Event "VIII Iberoamericano Mexico 2022"]
[Site "Mexico City"]
[Date "2022.02.19"]
[Round "9.48"]
[White "Nava Ruiz, Miguel Angel"]
[Black "Huguet, Sergio"]
[Result "1-0"]
[ECO "D31"]
[WhiteElo "1696"]
[BlackElo "1977"]
[Annotator "NA"]
[PlyCount "63"]
[EventDate "2022.02.12"]
[EventType "swiss"]
[EventCountry "MEX"]
[SourceTitle "playchess.com"]
[Source "ChessBase"]
[SourceQuality "1"]
[TimeControl "5400+30"]

1. d4 {[%emt 0:00:03]} d5 {[%emt 0:00:09]} 2. Nf3 {[%emt 0:01:22]} e6 {[%emt 0:00:23]} 3. c4 {[%emt 0:00:40]} c6 {[%emt 0:00:17]} 4. Nc3 {[%emt 0:03:22]} dxc4 {[%emt 0:01:48]} 5. e4 {[%emt 0:00:47]} b5 {[%emt 0:01:04]} 6. Be2 {[%emt 0:02:05]} Bb4 {[%emt 0:03:59]} 7. O-O {[%emt 0:02:50]} Nf6 {[%emt 0:05:34]} 8. Qc2 {[%emt 0:01:02]} Nbd7 {[%emt 0:03:26]} 9. a4 {[%emt 0:01:11]} Bxc3 {[%emt 0:09:44]} 10. bxc3 {[%emt 0:00:17]} Bb7 {[%emt 0:08:41]} 11. e5 {[%emt 0:14:48]} Nd5 {[%emt 0:02:15]} 12. Ng5 {[%emt 0:00:42]} N7b6 {[%emt 0:07:27]} 13. Ne4 {[%emt 0:00:43]} O-O {[%emt 0:07:37]} 14. Ba3 {[%emt 0:04:29]} Nxa4 {[%emt 0:45:06]} 15. Bxf8 {[%emt 0:00:20]} Qxf8 {[%emt 0:00:00]} 16. Bxc4 {[%emt 1:03:49]} Nab6 {[%emt 0:00:00]} 17. Bxd5 {[%emt 0:00:00]} cxd5 {[%emt 0:00:00]} 18. Nd6 {[%emt 0:00:00]} Bc6 {[%emt 0:00:00]} 19. Ra6 {[%emt 0:00:00]} Qe7 {[%emt 0:00:00]} 20. Rb1 {[%emt 0:00:00]} Qd7 {[%emt 0:00:00]} 21. Qb3 {[%emt 0:00:00]} Nc4 22. Nxc4 {[%emt 0:00:00]} dxc4 {[%emt 0:00:00]} 23. Qb4 {[%emt 0:00:00]} Bxg2 {[%emt 0:00:00]} 24. Qxb5 {[%emt 0:00:00]} Qxb5 {[%emt 0:00:00]} 25. Rxb5 {[%emt 0:00:00]} Bd5 {[%emt 0:00:00]} 26. Rxa7 {[%emt 0:00:00]} Rf8 {[%emt 0:00:00]} 27. f4 {[%emt 0:00:00]} g6 {[%emt 0:00:00]} 28. Kf2 {[%emt 0:00:00]} f5 {[%emt 0:00:00]} 29. exf6 {[%emt 0:00:00]} Rxf6 {[%emt 0:00:00]} 30. Rb8+ {[%emt 0:00:00]} Rf8 {[%emt 0:00:00]} 31. Rxf8+ {[%emt 0:00:00]} Kxf8 {[%emt 0:00:00]} 32. Rxh7 {[%emt 0:00:00]} 1-0

[Event "VIII Iberoamericano Mexico 2022"]
[Site "Mexico City"]
[Date "2022.02.19"]
[Round "9.50"]
[White "Ruiz Ortiz, Gabriel Abraham"]
[Black "Fernandez Sanchez, Mario Andres"]
[Result "0-1"]
[ECO "B23"]
[WhiteElo "1709"]
[BlackElo "2093"]
[Annotator "NA"]
[PlyCount "54"]
[EventDate "2022.02.12"]
[EventType "swiss"]
[EventCountry "MEX"]
[SourceTitle "playchess.com"]
[Source "ChessBase"]
[SourceQuality "1"]
[TimeControl "5400+30"]

1. e4 {[%emt 0:00:03]} c5 {[%emt 0:00:24]} 2. Nc3 {[%emt 0:00:09]} Nc6 {[%emt 0:00:05]} 3. f4 {[%emt 0:00:22]} g6 {[%emt 0:00:23]} 4. Bb5 {[%emt 0:00:20]} Nd4 {[%emt 0:00:06]} 5. Nf3 {[%emt 0:00:13]} Bg7 {[%emt 0:00:37]} 6. O-O {[%emt 0:00:45]} Nxb5 {[%emt 0:00:34]} 7. Nxb5 {[%emt 0:00:07]} d5 {[%emt 0:00:09]} 8. exd5 {[%emt 0:00:25]} a6 {[%emt 0:00:03]} 9. Nc3 {[%emt 0:00:28]} Nf6 {[%emt 0:00:01]} 10. d4 {[%emt 0:04:48]} c4 {[%emt 0:03:32]} 11. Qe2 {[%emt 0:13:26]} b5 {[%emt 0:01:18]} 12. Re1 {[%emt 0:01:33]} Bb7 {[%emt 0:02:31]} 13. f5 {[%emt 0:11:19]} Nxd5 {[%emt 0:17:14]} 14. Nxd5 {[%emt 0:18:55]} Bxd5 {[%emt 0:00:04]} 15. Bg5 {[%emt 0:00:57]} f6 {[%emt 0:11:05]} 16. Bh4 {[%emt 0:06:52]} gxf5 {[%emt 0:11:57]} 17. Ng5 {[%emt 0:09:33]} fxg5 {[%emt 0:11:21]} 18. Qh5+ {[%emt 0:00:19]} Bf7 {[%emt 0:02:07]} 19. Qxg5 {[%emt 0:01:06]} Qxd4+ {[%emt 0:01:19]} 20. Kh1 {[%emt 0:01:22]} O-O {[%emt 0:01:00]} 21. Qxf5 {[%emt 0:04:39]} Qxh4 {[%emt 0:00:16]} 22. Re3 {[%emt 0:01:17]} Bg6 {[%emt 0:00:58]} 23. Qd5+ {[%emt 0:00:45]} Kh8 {[%emt 0:00:06]} 24. Rh3 {[%emt 0:01:49]} Qf6 {[%emt 0:00:20]} 25. g4 {[%emt 0:02:05]} Rad8 {[%emt 0:00:06]} 26. Qb7 {[%emt 0:01:47]} Qd4 {[%emt 0:00:09]} 27. Re1 {[%emt 0:01:28]} Rf1+ {[%emt 0:00:10]} 0-1

[Event "VIII Iberoamericano Mexico 2022"]
[Site "Mexico City"]
[Date "2022.02.19"]
[Round "9.51"]
[White "Cortes Rodriguez, Marco"]
[Black "Alvidrez Aguirre, Genaro"]
[Result "1/2-1/2"]
[ECO "A12"]
[WhiteElo "2001"]
[BlackElo "1880"]
[Annotator "NA"]
[PlyCount "115"]
[EventDate "2022.02.12"]
[EventType "swiss"]
[EventCountry "MEX"]
[SourceTitle "playchess.com"]
[Source "ChessBase"]
[SourceQuality "1"]
[TimeControl "5400+30"]

1. Nf3 {[%emt 1:31:00]} d5 {[%emt 1:31:00]} 2. c4 {[%emt 0:00:30]} c6 {[%emt 0:00:30]} 3. e3 {[%emt 0:00:30]} Nf6 {[%emt 0:00:30]} 4. b3 {[%emt 0:00:30]} g6 {[%emt 0:00:30]} 5. Bb2 {[%emt 0:00:30]} Bg7 {[%emt 0:00:30]} 6. Be2 {[%emt 0:00:30]} O-O {[%emt 0:00:30]} 7. O-O {[%emt 0:00:30]} Re8 {[%emt 0:00:30]} 8. d4 {[%emt 0:00:30]} Bf5 {[%emt 0:00:30]} 9. Nbd2 {[%emt 0:00:30]} Ne4 {[%emt 0:00:30]} 10. Nxe4 {[%emt 0:00:30]} Bxe4 {[%emt 0:00:30]} 11. Nd2 {[%emt 0:00:30]} Bf5 {[%emt 0:00:30]} 12. g4 {[%emt 0:00:30]} Bc8 {[%emt 0:00:30]} 13. f4 {[%emt 0:00:30]} c5 {[%emt 0:00:30]} 14. cxd5 {[%emt 0:00:30]} cxd4 {[%emt 0:00:30]} 15. Bf3 {[%emt 0:00:30]} dxe3 {[%emt 0:00:30]} 16. Bxg7 {[%emt 0:00:30]} Kxg7 {[%emt 0:00:30]} 17. Nc4 {[%emt 0:00:30]} Na6 {[%emt 0:00:30]} 18. Qd4+ {[%emt 0:00:30]} Kg8 {[%emt 0:00:30]} 19. Nxe3 {[%emt 0:00:30]} Qd6 {[%emt 0:00:30]} 20. Rac1 {[%emt 0:00:30]} e5 {[%emt 0:00:30]} 21. fxe5 {[%emt 0:00:30]} Qxe5 {[%emt 0:00:30]} 22. Qxe5 {[%emt 0:00:30]} Rxe5 {[%emt 0:00:30]} 23. Nc4 {[%emt 0:00:30]} Re8 {[%emt 0:00:30]} 24. Nd6 {[%emt 0:00:30]} Rd8 {[%emt 0:00:30]} 25. Nxc8 {[%emt 0:00:30]} Raxc8 {[%emt 0:00:30]} 26. Rxc8 {[%emt 0:00:30]} Rxc8 {[%emt 0:00:30]} 27. d6 Rd8 {[%emt 0:00:30]} 28. Bxb7 {[%emt 0:01:00]} Nc5 {[%emt 0:00:30]} 29. Bd5 {[%emt 0:00:30]} Ne6 {[%emt 0:00:30]} 30. Bxe6 {[%emt 0:00:30]} fxe6 {[%emt 0:00:30]} 31. Rd1 {[%emt 0:00:30]} Kf7 {[%emt 0:00:30]} 32. Kf2 {[%emt 0:00:30]} Ke8 {[%emt 0:00:30]} 33. Ke3 {[%emt 0:00:30]} Kd7 {[%emt 0:00:30]} 34. Rc1 {[%emt 0:00:30]} a5 {[%emt 0:00:30]} 35. Rc7+ {[%emt 0:00:30]} Kxd6 {[%emt 0:00:30]} 36. Rxh7 {[%emt 0:00:30]} Ke5 {[%emt 0:00:30]} 37. Rg7 {[%emt 0:00:30]} Kf6 {[%emt 0:00:30]} 38. Ra7 {[%emt 0:00:30]} Rd5 {[%emt 0:00:30]} 39. h4 {[%emt 0:00:30]} Rb5 {[%emt 0:00:30]} 40. g5+ {[%emt 0:00:30]} Kf5 {[%emt 0:00:30]} 41. Rf7+ {[%emt 0:00:30]} Kg4 {[%emt 0:00:30]} 42. Rf4+ {[%emt 0:00:30]} Kg3 {[%emt 0:00:30]} 43. Re4 {[%emt 0:00:30]} e5 {[%emt 0:00:30]} 44. h5 {[%emt 0:00:30]} gxh5 {[%emt 0:00:30]} 45. g6 {[%emt 0:00:30]} h4 {[%emt 0:00:30]} 46. g7 {[%emt 0:00:30]} Rb8 {[%emt 0:00:30]} 47. Rxe5 {[%emt 0:00:30]} Kg4 {[%emt 0:00:30]} 48. Rxa5 {[%emt 0:00:30]} Rg8 {[%emt 0:00:30]} 49. Ra7 {[%emt 0:00:30]} Kg3 {[%emt 0:00:30]} 50. b4 {[%emt 0:00:30]} h3 {[%emt 0:00:30]} 51. Ra6 {[%emt 0:00:30]} Rxg7 {[%emt 0:00:30]} 52. Rh6 {[%emt 0:00:30]} Ra7 {[%emt 0:00:30]} 53. Rg6+ {[%emt 0:00:30]} Kh2 {[%emt 0:00:30]} 54. b5 {[%emt 0:00:30]} Rxa2 {[%emt 0:00:30]} 55. b6 {[%emt 0:00:30]} Rg2 {[%emt 0:00:30]} 56. Rh6 {[%emt 0:00:30]} Rb2 {[%emt 0:00:30]} 57. Kf3 {[%emt 0:00:30]} Rb3+ {[%emt 0:00:30]} 58. Ke4 {[%emt 0:00:30]} 1/2-1/2